lending/lending_fUSD_20260317
["ID","MTS","AMOUNT","RATE_DAILY","PERIOD"]
[408489458,1773747813023,-151.0,0.00041096,120]
[408489459,1773747813066,-151.0,0.00041096,120]
[408489460,1773747813092,-151.0,0.00041096,120]
[408489461,1773747813120,-249.553865,0.00041096,120]
[408489462,1773747813148,-150.0,0.00041121,120]
[408489463,1773747813174,-363.10827,0.00041288,30]
[408489464,1773747813202,-866.75,0.00041328,30]
[408489465,1773747813230,-866.75,0.00041328,30]
[408489466,1773747813258,-1000.0,0.0004137,120]
[408489467,1773747813285,-151.0,0.000414,120]
[408489468,1773747813315,-250.0,0.00041409,91]
[408489469,1773747813345,-363.10827,0.00041488,30]
[408489470,1773747813374,-500.0,0.000415,45]
[408489471,1773747813404,-500.0,0.000415,45]
[408489472,1773747813432,-500.0,0.000415,45]
[408489473,1773747813457,-500.0,0.000415,45]
[408489474,1773747813483,-500.0,0.000415,45]
[408489475,1773747813509,-500.0,0.000415,45]
[408489476,1773747813532,-500.0,0.000415,45]
[408489477,1773747813555,-500.0,0.000415,45]
[408489478,1773747813578,-866.75,0.00041602,30]
[408489479,1773747813601,-866.75,0.00041602,30]
[408489480,1773747813624,-1000.0,0.00041644,120]
[408489481,1773747813647,-363.10827,0.00041688,30]
[408489482,1773747813670,-2998.56,0.00041695,120]
[408489483,1773747813694,-10994.0,0.000417,117]
[408489484,1773747813717,-198.56,0.00041815,120]
[408489485,1773747813740,-866.75,0.00041876,30]
[408489486,1773747813933,-866.75,0.00041876,30]
[408489487,1773747813957,-208.723998,0.00041876,120]
[408489488,1773747813981,-363.10827,0.00041888,30]
[408489489,1773747814005,-1000.0,0.00041918,120]
[408489490,1773747814027,-293.0,0.00041927,30]
[408489491,1773747814049,-202.3801095,0.00042,120]
[408489492,1773747814072,-500.0,0.00042,45]
[408489493,1773747814095,-500.0,0.00042,45]
[408489494,1773747814117,-500.0,0.00042,45]
[408489495,1773747814139,-500.0,0.00042,45]
[408489496,1773747814162,-500.0,0.00042,45]
[408489497,1773747814184,-500.0,0.00042,45]
[408489498,1773747814206,-500.0,0.00042,45]
[408489499,1773747814228,-227.75231794,0.00042,120]
[408489500,1773747814254,-250.0,0.00042005,95]
[408489501,1773747814277,-150.0,0.0004214,30]
[408489502,1773747814302,-866.75,0.0004215,30]
[408489503,1773747814325,-866.75,0.0004215,30]
[408489504,1773747814349,-1000.0,0.00042192,120]
[408489505,1773747814373,-12697.0,0.000423,60]
[408489506,1773747814396,-250.0,0.00042389,100]
[408489507,1773747814419,-289.63782647,0.00042438,120]
[408489508,1773747814441,-197.4935404,0.00042438,120]
[408489509,1773747814464,-1000.0,0.00042466,120]
[408489510,1773747814487,-1871.1,0.00042483,30]
[408489511,1773747814509,-660.95,0.00042483,30]
[408489512,1773747814531,-304.17,0.00042483,30]
[408489513,1773747814554,-500.0,0.000425,45]
[408489514,1773747814577,-500.0,0.000425,45]
[408489515,1773747814601,-500.0,0.000425,45]
[408489516,1773747814624,-500.0,0.000425,45]
[408489517,1773747814647,-500.0,0.000425,45]
[408489518,1773747814669,-500.0,0.000425,45]
[408489519,1773747814692,-500.0,0.000425,45]
[408489520,1773747814715,-1605.66541558,0.000425,120]
[408489521,1773747814738,-2993.77,0.00042546,120]
[408489522,1773747814760,-1039.72,0.00042546,120]
[408489523,1773747814784,-369.19,0.00042546,120]
[408489524,1773747814809,-250.0,0.00042637,105]
[408489525,1773747814832,-1000.0,0.0004274,120]
[408489526,1773747814857,-250.0,0.00042798,109]
[408489527,1773747814882,-151.0,0.000428,120]
[408489528,1773747814905,-2521.13133589,0.0004288,60]
[408489529,1773747814933,-250.0,0.00042901,113]
[408489530,1773747814959,-293.0,0.00042927,30]
[408489531,1773747814983,-250.0,0.00042968,116]
[408489532,1773747815040,-521.97,0.00043,30]
[408489533,1773747815069,-1243.54380591,0.00043,120]
[408489534,1773747815096,-250.0,0.00043011,117]
[408489535,1773747815121,-1000.0,0.00043014,120]
[408489536,1773747815149,-250.0,0.00043039,119]
[408489537,1773747815175,-250.0,0.00043057,119]
[408489538,1773747815201,-250.0,0.00043068,120]
[408489539,1773747815227,-250.0,0.00043068,120]
[408489540,1773747815254,-250.0,0.00043068,120]
[408489541,1773747815279,-250.0,0.00043068,120]
[408489542,1773747815303,-250.0,0.00043068,120]
[408489543,1773747815332,-250.0,0.00043068,120]
[408489544,1773747815356,-250.0,0.00043068,120]
[408489545,1773747815381,-250.0,0.00043068,120]
[408489546,1773747815405,-1063.71409303,0.000431,120]
[408489547,1773747815429,-150.0,0.00043177,120]
[408489548,1773747815454,-544.57,0.000432,90]
[408489549,1773747815478,-1000.0,0.00043288,120]
[408489550,1773747815503,-3037.81733905,0.000435,30]
[408489551,1773747815527,-1000.0,0.00043562,120]
[408489552,1773747815552,-12697.0,0.0004365,60]
[408489553,1773747815575,-329.91108572,0.000437,120]
[408489554,1773747815599,-656.76,0.00043778,120]
[408489555,1773747815622,-1280.88388878,0.00043834,60]
[408489556,1773747815646,-250.0,0.00043834,60]
[408489557,1773747815669,-500.0,0.00043834,60]
[408489558,1773747815693,-500.0,0.00043834,60]
[408489559,1773747815717,-500.0,0.00043834,60]
[408489560,1773747815744,-500.0,0.00043834,60]
[408489561,1773747815768,-500.0,0.00043834,60]
[408489562,1773747815793,-500.0,0.00043834,60]
[408489563,1773747815816,-250.0,0.00043834,60]
[408489564,1773747815841,-151.0,0.00043834,60]
[408489565,1773747815995,-750.0,0.00043834,60]
[408489566,1773747816029,-250.0,0.00043834,60]
[408489567,1773747816054,-151.0,0.00043834,60]
[408489568,1773747816078,-250.0,0.00043834,60]
[408489569,1773747816104,-500.0,0.00043834,60]
[408489570,1773747816128,-647.36600635,0.00043835,120]
[408489571,1773747816152,-1235.18214925,0.00043835,30]
[408489572,1773747816176,-250.0,0.00043835,30]
[408489573,1773747816200,-500.0,0.00043835,30]
[408489574,1773747816225,-500.0,0.00043835,30]
[408489575,1773747816251,-500.0,0.00043835,30]
[408489576,1773747816277,-500.0,0.00043835,30]
[408489577,1773747816305,-500.0,0.00043835,30]
[408489578,1773747816330,-500.0,0.00043835,30]
[408489579,1773747816355,-250.0,0.00043835,30]
[408489580,1773747816381,-151.0,0.00043835,30]
[408489581,1773747816406,-750.0,0.00043835,30]
[408489582,1773747816432,-250.0,0.00043835,30]
[408489583,1773747816456,-151.0,0.00043835,30]
[408489584,1773747816481,-250.0,0.00043835,30]
[408489585,1773747816506,-500.0,0.00043835,30]
[408489586,1773747816531,-1000.0,0.00043836,120]
[408489587,1773747816555,-194.03656743,0.00043836,120]
[408489588,1773747816581,-5022.72878446,0.000439,120]
[408489589,1773747816605,-399.3,0.000439,120]
[408489590,1773747816630,-293.0,0.00043927,30]
[408489591,1773747816654,-1000.49870513,0.00043987,120]
[408489592,1773747816678,-399.0,0.00044,120]
[408489593,1773747816703,-5000.0,0.00044,30]
[408489594,1773747816728,-2000.0,0.00044,120]
[408489595,1773747816754,-200.0,0.00044,120]
[408489596,1773747816778,-10000.0,0.00044,120]
[408489597,1773747816801,-257.86515421,0.00044,120]
[408489598,1773747816826,-281.414851,0.00044,57]
[408489599,1773747816850,-1000.0,0.0004411,120]
[408489600,1773747816874,-374.22,0.00044158,120]
[408489601,1773747816899,-150.0,0.00044158,120]
[408489602,1773747816924,-150.0,0.00044158,120]
[408489603,1773747816949,-50544.3,0.000443,60]
[408489604,1773747816975,-151.0,0.000443,120]
[408489605,1773747816999,-150.0,0.00044314,30]
[408489606,1773747817024,-780.0,0.00044356,120]
[408489607,1773747817054,-1000.0,0.00044384,120]
[408489608,1773747817079,-1098.24809871,0.0004444,120]
[408489609,1773747817106,-702.9,0.00044596,120]
[408489610,1773747817133,-1000.0,0.00044658,120]
[408489611,1773747817160,-48904.21565963,0.000448,30]
[408489612,1773747817185,-50000.0,0.000448,40]
[408489613,1773747817210,-50000.0,0.000448,50]
[408489614,1773747817235,-33499.0830305,0.000449,120]
[408489615,1773747817262,-6483.15069112,0.000449,30]
[408489616,1773747817286,-293.0,0.00044927,30]
[408489617,1773747817311,-1000.0,0.00044932,120]
[408489618,1773747817336,-304.37328181,0.00045,120]
[408489619,1773747817359,-168.8973467,0.00045,120]
[408489620,1773747817383,-172.70814831,0.00045,30]
[408489621,1773747817406,-150.0,0.00045,120]
[408489622,1773747817428,-2143.67193276,0.00045,120]
[408489623,1773747817451,-25770.61964612,0.00045,120]
[408489624,1773747817476,-1000.0,0.00045,60]
[408489625,1773747817503,-10199.88821663,0.00045,60]
[408489626,1773747817528,-3677.16630606,0.00045,120]
[408489627,1773747817553,-500.0,0.00045,45]
[408489628,1773747817577,-500.0,0.00045,45]
[408489629,1773747817600,-500.0,0.00045,45]
[408489630,1773747817622,-500.0,0.00045,45]
[408489631,1773747817645,-500.0,0.00045,45]
[408489632,1773747817667,-500.0,0.00045,45]
[408489633,1773747817690,-500.0,0.00045,45]
[408489634,1773747817714,-500.0,0.00045,45]
[408489635,1773747817737,-500.0,0.00045,45]
[408489636,1773747817761,-500.0,0.00045,45]
[408489637,1773747817785,-465.68866907,0.00045,30]
[408489638,1773747817809,-150.74657208,0.00045,30]
[408489639,1773747817832,-1427.19,0.00045,120]
[408489640,1773747817856,-200.0,0.00045,40]
[408489641,1773747817880,-285.44,0.00045,120]
[408489642,1773747817904,-5681.2,0.00045,120]
[408489643,1773747817928,-182.71448726,0.00045,120]
[408489644,1773747817952,-225.69020093,0.00045,30]
[408489645,1773747817977,-168.92229034,0.00045,120]
[408489646,1773747818148,-166.81255779,0.00045,120]
[408489647,1773747818172,-192.66,0.00045,120]
[408489648,1773747818196,-1065.74199681,0.00045,120]
[408489649,1773747818220,-2433.1349649,0.00045,120]
[408489650,1773747818244,-1966.83,0.00045,120]
[408489651,1773747818272,-1053.51312144,0.00045,120]
[408489652,1773747818297,-9538.73,0.00045,120]
[408489653,1773747818321,-322720.65723,0.00045,30]
[408489654,1773747818347,-5000.0,0.00045,120]
[408489655,1773747818370,-53219.84764268,0.00045,30]
[408489656,1773747818393,-340465.75144754,0.00045,30]
[408489657,1773747818417,-20000.0,0.00045,120]
[408489658,1773747818440,-22708.42419942,0.00045,120]
[408489659,1773747818464,-1633.02,0.00045,30]
[408489660,1773747818488,-513.57,0.00045,120]
[408489661,1773747818512,-28948.49520191,0.00045,120]
[408489662,1773747818534,-782.11558609,0.00045,30]
[408489663,1773747818557,-437.34,0.00045,120]
[408489664,1773747818579,-666.229999,0.00045,30]
[408489665,1773747818602,-184.73301294,0.00045,120]
[408489666,1773747818626,-2558.33,0.00045,120]
[408489667,1773747818648,-432.03,0.00045,120]
[408489668,1773747818672,-426.9,0.00045,120]
[408489669,1773747818695,-680.95,0.00045,120]
[408489670,1773747818718,-319.63,0.00045,120]
[408489671,1773747818743,-12697.0,0.00045,60]
[408489672,1773747818766,-332.11,0.00045,120]
[408489673,1773747818790,-398.65,0.00045,120]
[408489674,1773747818813,-373.51,0.00045,120]
[408489675,1773747818836,-716.7,0.00045,120]
[408489676,1773747818860,-372.24,0.00045,120]
[408489677,1773747818883,-1991.38596446,0.00045,30]
[408489678,1773747818908,-5029.84247289,0.00045025,120]
[408489679,1773747818934,-191.40270971,0.00045061,120]
[408489680,1773747818957,-663.65,0.00045205,120]
[408489681,1773747818981,-1000.0,0.00045205,120]
[408489682,1773747819004,-165.0,0.000453,120]
[408489683,1773747819028,-150.0,0.00045336,120]
[408489684,1773747819057,-72318.3674,0.00045338,30]
[408489685,1773747819080,-151.46017796,0.000454,30]
[408489686,1773747819103,-2092.33126771,0.00045421,120]
[408489687,1773747819127,-245.065824,0.00045479,120]
[408489688,1773747819152,-1000.0,0.00045479,120]
[408489689,1773747819176,-10000.0,0.000455,120]
[408489690,1773747819199,-198.56,0.00045616,120]
[408489691,1773747819222,-257.234447,0.00045616,120]
[408489692,1773747819246,-151.0,0.00045616,120]
[408489693,1773747819273,-166.036986,0.00045616,120]
[408489694,1773747819299,-166.292356,0.00045616,120]
[408489695,1773747819324,-166.292356,0.00045616,120]
[408489696,1773747819349,-166.292356,0.00045616,120]
[408489697,1773747819374,-166.292356,0.00045616,120]
[408489698,1773747819400,-166.292356,0.00045616,120]
[408489699,1773747819423,-166.292356,0.00045616,120]
[408489700,1773747819448,-166.292356,0.00045616,120]
[408489701,1773747819472,-166.292356,0.00045616,120]
[408489702,1773747819495,-166.292356,0.00045616,120]
[408489703,1773747819520,-166.292356,0.00045616,120]
[408489704,1773747819545,-166.292356,0.00045616,120]
[408489705,1773747819569,-166.292356,0.00045616,120]
[408489706,1773747819592,-166.292356,0.00045616,120]
[408489707,1773747819616,-166.292356,0.00045616,120]
[408489708,1773747819640,-166.292356,0.00045616,120]
[408489709,1773747819666,-166.292356,0.00045616,120]
[408489710,1773747819690,-166.292356,0.00045616,120]
[408489711,1773747819715,-166.292356,0.00045616,120]
[408489712,1773747819739,-166.292356,0.00045616,120]
[408489713,1773747819764,-166.292347,0.00045616,120]
[408489714,1773747819788,-256.283991,0.00045616,120]
[408489715,1773747819812,-155.599714,0.00045616,120]
[408489716,1773747819836,-155.599714,0.00045616,120]
[408489717,1773747819860,-155.599714,0.00045616,120]
[408489718,1773747819882,-155.599714,0.00045616,120]
[408489719,1773747819906,-155.599714,0.00045616,120]
[408489720,1773747819930,-155.599714,0.00045616,120]
[408489721,1773747819955,-155.599714,0.00045616,120]
[408489722,1773747819978,-155.599714,0.00045616,120]
[408489723,1773747820001,-155.599714,0.00045616,120]
[408489724,1773747820151,-155.599714,0.00045616,120]
[408489725,1773747820177,-155.599714,0.00045616,120]
[408489726,1773747820200,-155.599714,0.00045616,120]
[408489727,1773747820225,-155.599714,0.00045616,120]
[408489728,1773747820251,-155.599714,0.00045616,120]
[408489729,1773747820278,-155.599714,0.00045616,120]
[408489730,1773747820303,-155.599714,0.00045616,120]
[408489731,1773747820329,-155.599714,0.00045616,120]
[408489732,1773747820352,-155.599714,0.00045616,120]
[408489733,1773747820376,-155.599714,0.00045616,120]
[408489734,1773747820402,-155.599704,0.00045616,120]
[408489735,1773747820427,-165.221285,0.00045616,120]
[408489736,1773747820453,-151.0,0.00045616,120]
[408489737,1773747820477,-165.519753,0.00045616,120]
[408489738,1773747820501,-151.0,0.00045616,120]
[408489739,1773747820527,-151.0,0.00045616,120]
[408489740,1773747820550,-151.0,0.00045616,120]
[408489741,1773747820573,-151.0,0.00045616,120]
[408489742,1773747820596,-151.0,0.00045616,120]
[408489743,1773747820619,-151.0,0.00045616,120]
[408489744,1773747820642,-151.0,0.00045616,120]
[408489745,1773747820668,-151.0,0.00045616,120]
[408489746,1773747820696,-186.242156,0.00045616,120]
[408489747,1773747820725,-242.760751,0.00045616,120]
[408489748,1773747820749,-166.547658,0.00045616,120]
[408489749,1773747820777,-164.960924,0.00045616,120]
[408489750,1773747820803,-290.084329,0.00045616,120]
[408489751,1773747820830,-290.084329,0.00045616,120]
[408489752,1773747820856,-290.084329,0.00045616,120]
[408489753,1773747820882,-290.084329,0.00045616,120]
[408489754,1773747820906,-290.084329,0.00045616,120]
[408489755,1773747820930,-290.084329,0.00045616,120]
[408489756,1773747820955,-290.084329,0.00045616,120]
[408489757,1773747820979,-290.084329,0.00045616,120]
[408489758,1773747821004,-290.084329,0.00045616,120]
[408489759,1773747821030,-290.084329,0.00045616,120]
[408489760,1773747821055,-290.084329,0.00045616,120]
[408489761,1773747821078,-290.084329,0.00045616,120]
[408489762,1773747821101,-290.084329,0.00045616,120]
[408489763,1773747821125,-290.084329,0.00045616,120]
[408489764,1773747821149,-290.084329,0.00045616,120]
[408489765,1773747821173,-290.084329,0.00045616,120]
[408489766,1773747821196,-290.084329,0.00045616,120]
[408489767,1773747821221,-290.084329,0.00045616,120]
[408489768,1773747821245,-290.084329,0.00045616,120]
[408489769,1773747821273,-290.084322,0.00045616,120]
[408489770,1773747821299,-192.417515,0.00045616,120]
[408489771,1773747821324,-162.553612,0.00045616,120]
[408489772,1773747821349,-151.0,0.00045616,35]
[408489773,1773747821374,-151.0,0.00045616,35]
[408489774,1773747821399,-151.0,0.00045616,35]
[408489775,1773747821423,-179.65131,0.00045616,35]
[408489776,1773747821448,-162.049572,0.00045616,120]
[408489777,1773747821472,-499.91,0.00045616,120]
[408489778,1773747821497,-499.91,0.00045616,120]
[408489779,1773747821524,-499.91,0.00045616,120]
[408489780,1773747821548,-499.91,0.00045616,120]
[408489781,1773747821572,-499.91,0.00045616,120]
[408489782,1773747821596,-499.91,0.00045616,120]
[408489783,1773747821620,-499.91,0.00045616,120]
[408489784,1773747821645,-499.91,0.00045616,120]
[408489785,1773747821670,-499.91,0.00045616,120]
[408489786,1773747821694,-499.91,0.00045616,120]
[408489787,1773747821719,-499.91,0.00045616,120]
[408489788,1773747821744,-499.91,0.00045616,120]
[408489789,1773747821772,-499.91,0.00045616,120]
[408489790,1773747821798,-499.91,0.00045616,120]
[408489791,1773747821823,-499.91,0.00045616,120]
[408489792,1773747821849,-499.91,0.00045616,120]
[408489793,1773747821874,-499.91,0.00045616,120]
[408489794,1773747821899,-499.91,0.00045616,120]
[408489795,1773747821925,-499.91,0.00045616,120]
[408489796,1773747821950,-499.91,0.00045616,120]
[408489797,1773747821974,-151.0,0.00045616,120]
[408489798,1773747822000,-156.462677,0.00045616,120]
[408489799,1773747822024,-1999.62,0.00045616,120]
[408489800,1773747822176,-1999.62,0.00045616,120]
[408489801,1773747822204,-1999.62,0.00045616,120]
[408489802,1773747822230,-1999.62,0.00045616,120]
[408489803,1773747822258,-1999.62,0.00045616,120]
[408489804,1773747822284,-1999.62,0.00045616,120]
[408489805,1773747822311,-1999.62,0.00045616,120]
[408489806,1773747822337,-1999.62,0.00045616,120]
[408489807,1773747822360,-1999.62,0.00045616,120]
[408489808,1773747822384,-1999.62,0.00045616,120]
[408489809,1773747822407,-1999.62,0.00045616,120]
[408489810,1773747822430,-1999.62,0.00045616,120]
[408489811,1773747822454,-1999.62,0.00045616,120]
[408489812,1773747822478,-1999.62,0.00045616,120]
[408489813,1773747822502,-1999.62,0.00045616,120]
[408489814,1773747822524,-1999.62,0.00045616,120]
[408489815,1773747822547,-1999.62,0.00045616,120]
[408489816,1773747822570,-1999.62,0.00045616,120]
[408489817,1773747822594,-1999.62,0.00045616,120]
[408489818,1773747822618,-1999.62,0.00045616,120]
[408489819,1773747822642,-181.134081,0.00045616,120]
[408489820,1773747822666,-151.0,0.00045616,120]
[408489821,1773747822690,-151.0,0.00045616,120]
[408489822,1773747822714,-176.795395,0.00045616,120]
[408489823,1773747822739,-226.359742,0.00045616,120]
[408489824,1773747822763,-153.825666,0.00045616,120]
[408489825,1773747822787,-151.0,0.00045616,120]
[408489826,1773747822812,-151.0,0.00045616,120]
[408489827,1773747822836,-151.0,0.00045616,120]
[408489828,1773747822859,-161.905382,0.00045616,120]
[408489829,1773747822884,-151.0,0.00045616,120]
[408489830,1773747822909,-151.0,0.00045616,120]
[408489831,1773747822933,-151.0,0.00045616,120]
[408489832,1773747822956,-151.0,0.00045616,120]
[408489833,1773747822979,-265.486808,0.00045616,120]
[408489834,1773747823003,-172.013702,0.00045616,120]
[408489835,1773747823027,-151.0,0.00045616,30]
[408489836,1773747823050,-151.0,0.00045616,30]
[408489837,1773747823073,-164.032337,0.00045616,30]
[408489838,1773747823096,-161.142182,0.00045616,120]
[408489839,1773747823120,-151.0,0.00045616,120]
[408489840,1773747823143,-151.0,0.00045616,120]
[408489841,1773747823166,-151.0,0.00045616,120]
[408489842,1773747823189,-209.956516,0.00045616,120]
[408489843,1773747823213,-224.749827,0.00045616,120]
[408489844,1773747823237,-224.749827,0.00045616,120]
[408489845,1773747823265,-224.749827,0.00045616,120]
[408489846,1773747823289,-224.749827,0.00045616,120]
[408489847,1773747823313,-224.749827,0.00045616,120]
[408489848,1773747823339,-224.749827,0.00045616,120]
[408489849,1773747823366,-224.749827,0.00045616,120]
[408489850,1773747823391,-224.749827,0.00045616,120]
[408489851,1773747823416,-224.749827,0.00045616,120]
[408489852,1773747823440,-224.749827,0.00045616,120]
[408489853,1773747823464,-224.749827,0.00045616,120]
[408489854,1773747823488,-224.749827,0.00045616,120]
[408489855,1773747823514,-224.749827,0.00045616,120]
[408489856,1773747823539,-224.749827,0.00045616,120]
[408489857,1773747823564,-224.749827,0.00045616,120]
[408489858,1773747823588,-224.749827,0.00045616,120]
[408489859,1773747823611,-224.749827,0.00045616,120]
[408489860,1773747823636,-224.749827,0.00045616,120]
[408489861,1773747823659,-224.749827,0.00045616,120]
[408489862,1773747823683,-224.749826,0.00045616,120]
[408489863,1773747823706,-151.0,0.00045616,120]
[408489864,1773747823728,-151.0,0.00045616,120]
[408489865,1773747823751,-151.0,0.00045616,120]
[408489866,1773747823774,-174.889473,0.00045616,120]
[408489867,1773747823797,-151.0,0.00045616,60]
[408489868,1773747823819,-184.334906,0.00045616,60]
[408489869,1773747823842,-154.942586,0.00045616,120]
[408489870,1773747823866,-181.851704,0.00045616,120]
[408489871,1773747823890,-274.24725,0.00045616,120]
[408489872,1773747823913,-157.78798,0.00045616,120]
[408489873,1773747823936,-151.0,0.00045616,120]
[408489874,1773747824086,-161.372816,0.00045616,120]
[408489875,1773747824112,-151.0,0.00045616,120]
[408489876,1773747824135,-151.0,0.00045616,120]
[408489877,1773747824159,-151.0,0.00045616,120]
[408489878,1773747824182,-151.0,0.00045616,120]
[408489879,1773747824205,-151.0,0.00045616,120]
[408489880,1773747824229,-242.7006,0.00045616,120]
[408489881,1773747824254,-151.0,0.00045616,120]
[408489882,1773747824280,-151.0,0.00045616,120]
[408489883,1773747824304,-151.0,0.00045616,120]
[408489884,1773747824329,-151.0,0.00045616,120]
[408489885,1773747824352,-151.0,0.00045616,120]
[408489886,1773747824374,-151.0,0.00045616,120]
[408489887,1773747824398,-151.0,0.00045616,120]
[408489888,1773747824421,-216.643091,0.00045616,120]
[408489889,1773747824444,-151.0,0.00045616,120]
[408489890,1773747824468,-224.773962,0.00045616,120]
[408489891,1773747824491,-151.0,0.00045616,90]
[408489892,1773747824514,-151.0,0.00045616,90]
[408489893,1773747824538,-151.0,0.00045616,90]
[408489894,1773747824562,-151.0,0.00045616,90]
[408489895,1773747824587,-151.0,0.00045616,90]
[408489896,1773747824610,-151.0,0.00045616,90]
[408489897,1773747824634,-151.0,0.00045616,90]
[408489898,1773747824658,-151.0,0.00045616,90]
[408489899,1773747824682,-151.0,0.00045616,90]
[408489900,1773747824705,-151.0,0.00045616,90]
[408489901,1773747824728,-151.0,0.00045616,90]
[408489902,1773747824752,-151.0,0.00045616,90]
[408489903,1773747824780,-248.064886,0.00045616,90]
[408489904,1773747824804,-217.731935,0.00045616,120]
[408489905,1773747824827,-180.738393,0.00045616,120]
[408489906,1773747824850,-151.0,0.00045616,120]
[408489907,1773747824874,-151.0,0.00045616,120]
[408489908,1773747824897,-215.026011,0.00045616,120]
[408489909,1773747824921,-200.298398,0.00045616,120]
[408489910,1773747824943,-249.023827,0.00045616,120]
[408489911,1773747824967,-151.0,0.00045616,120]
[408489912,1773747824991,-178.727925,0.00045616,120]
[408489913,1773747825015,-151.0,0.00045616,120]
[408489914,1773747825039,-151.0,0.00045616,120]
[408489915,1773747825066,-151.0,0.00045616,120]
[408489916,1773747825089,-151.0,0.00045616,120]
[408489917,1773747825113,-151.0,0.00045616,120]
[408489918,1773747825138,-207.333852,0.00045616,120]
[408489919,1773747825161,-151.0,0.00045616,120]
[408489920,1773747825185,-1302.80168,0.00045616,120]
[408489921,1773747825209,-218.862902,0.00045616,120]
[408489922,1773747825235,-1302.80168,0.00045616,120]
[408489923,1773747825261,-1302.80168,0.00045616,120]
[408489924,1773747825285,-1302.80168,0.00045616,120]
[408489925,1773747825310,-1302.80168,0.00045616,120]
[408489926,1773747825335,-1302.80168,0.00045616,120]
[408489927,1773747825359,-1302.80168,0.00045616,120]
[408489928,1773747825382,-1302.80168,0.00045616,120]
[408489929,1773747825406,-1302.80168,0.00045616,120]
[408489930,1773747825430,-1302.80168,0.00045616,120]
[408489931,1773747825454,-1302.80168,0.00045616,120]
[408489932,1773747825478,-1302.80168,0.00045616,120]
[408489933,1773747825502,-1302.80168,0.00045616,120]
[408489934,1773747825526,-1302.80168,0.00045616,120]
[408489935,1773747825549,-151.0,0.00045616,120]
[408489936,1773747825572,-1302.80168,0.00045616,120]
[408489937,1773747825595,-1788.112498,0.00045616,120]
[408489938,1773747825618,-1302.80168,0.00045616,120]
[408489939,1773747825642,-1788.112498,0.00045616,120]
[408489940,1773747825664,-1302.80168,0.00045616,120]
[408489941,1773747825688,-1788.112498,0.00045616,120]
[408489942,1773747825712,-1302.80168,0.00045616,120]
[408489943,1773747825736,-151.0,0.00045616,120]
[408489944,1773747825760,-1788.112498,0.00045616,120]
[408489945,1773747825906,-1302.80168,0.00045616,120]
[408489946,1773747825932,-151.0,0.00045616,120]
[408489947,1773747825956,-1788.112498,0.00045616,120]
[408489948,1773747825981,-177.335452,0.00045616,120]
[408489949,1773747826006,-1302.801682,0.00045616,120]
[408489950,1773747826035,-151.0,0.00045616,31]
[408489951,1773747826059,-1788.112508,0.00045616,120]
[408489952,1773747826083,-151.0,0.00045616,31]
[408489953,1773747826107,-151.0,0.00045616,31]
[408489954,1773747826131,-151.0,0.00045616,31]
[408489955,1773747826155,-151.0,0.00045616,31]
[408489956,1773747826179,-151.0,0.00045616,31]
[408489957,1773747826202,-155.833297,0.00045616,120]